[Event "13th KIIT Festival-A 2022"]
[Site "Bhubaneswar"]
[Date "2022.05.28"]
[Round "9.5"]
[White "Karthikeyan, P.."]
[Black "Azaladze, Shota"]
[Result "0-1"]
[ECO "B06"]
[WhiteElo "2361"]
[BlackElo "2420"]
[Annotator "TA"]
[PlyCount "96"]
[EventDate "2022.05.15"]
[EventType "swiss"]
[EventCountry "IND"]
[SourceTitle "playchess.com"]
[Source "ChessBase"]
[SourceQuality "1"]
[TimeControl "5400+30"]

{[%evp 9,96,24,45,43,54,37,32,21,44,47,27,18,15,0,-18,0,-7,-47,-40,-66,-16,-48,-50,-53,33,41,193,58,65,50,47,65,78,0,0,-13,-23,-8,33,-78,-75,-71,-71,-81,-71,-71,-81,-81,-81,-109,-70,-57,0,0,0,0,0,0,0,0,0,-211,-218,-305,0,0,0,0,0,-49,-22,0,94,69,65,0,0,-11,0,-485,-485,-478,-435,-697,-501,-999,-916,-872,-804]} 1. e4 {[%emt 0:00:06]} g6 {[%emt 0:00:12]} 2. d4 {[%emt 0:00:25]} Bg7 {[%emt 0:00:02]} 3. Nc3 {[%emt 0:00:14]} c6 {[%emt 0:00:03]} 4. Be3 {[%emt 0:00:45]} Qb6 {[%emt 0:00:11]} 5. a3 {[%emt 0:00:37]} d6 {[%emt 0:00:06]} 6. Nf3 {[%emt 0:01:05] B06: Modern Defence.} Nf6 {[%emt 0:00:07]} 7. h3 {[%emt 0:12:20]} O-O {[%emt 0:00:17]} 8. Bd3 {[%emt 0:01:25] White is slightly better.} Qc7 {[%emt 0:01:07] has lost popularity (8...Nbd7).} 9. Qd2 {[%emt 0:01:59]} Nbd7 {[%emt 0:00:13]} 10. Bh6 {[%emt 0:01:02]} e5 {[%emt 0:00:29] [#]} 11. O-O-O $146 {[%emt 0:04:37]} ({Predecessor:} 11. O-O Re8 12. Rfe1 Nf8 13. Ne2 Nh5 14. Rad1 Ne6 15. Bc4 Nef4 16. Bxg7 Kxg7 17. Nxf4 Nxf4 18. dxe5 dxe5 {½-½ (68) Grischuk,A (2728)-Morozevich,A (2788) Moscow 2008}) 11... b5 {[%emt 0:03:35]} 12. Bxg7 {[%emt 0:02:58]} Kxg7 {[%emt 0:00:03]} 13. h4 {[%emt 0:00:02][%cal Oh4h5]} h5 $1 {[%emt 0:03:07]} 14. Ne2 {[%emt 0:00:37]} Ng4 {[%emt 0:01:52]} (14... Rb8 $15) 15. Ng3 {[%emt 0:00:54][%cal Og3f5]} f6 $1 {[%emt 0:00:05]} 16. Rhf1 {[%emt 0:15:18]} Qb6 {[%emt 0:01:08]} ({Better is} 16... a5 $15) 17. Be2 $14 {[%emt 0:00:28]} Rf7 $2 {[%emt 0:04:52] [#]} (17... Qc7 $14) 18. Ne1 {[%emt 0:02:10]} (18. Ng5 $1 $18 {[%cal Rg5f7][%mdl 512]} fxg5 19. Bxg4 hxg4 20. Qxg5) 18... Nf8 $1 {[%emt 0:00:12]} 19. f3 {[%emt 0:05:08]} Nh6 {[%emt 0:00:29]} 20. f4 {[%emt 0:03:59]} exf4 {[%emt 0:01:46]} 21. Qxf4 {[%emt 0:04:39]} (21. Rxf4 $16 {[%cal Oe2h5]} Bg4 22. e5 dxe5 23. dxe5) 21... Bg4 $11 {[%emt 0:01:25]} 22. Nf3 {[%emt 0:11:21]} (22. Qxd6 $5 {[%cal Re4e5]} Rd8 23. Qc5 $11) 22... Ne6 {[%emt 0:07:31]} 23. Qd2 {[%emt 0:00:02]} d5 {[%emt 0:02:52]} 24. exd5 {[%emt 0:11:53]} (24. e5 $14 {stays ahead.} Bxf3 25. gxf3) 24... cxd5 $17 {[%emt 0:00:59]} 25. Nh2 {[%emt 0:02:04]} Bxe2 {[%emt 0:04:19]} 26. Nxe2 {[%emt 0:00:07]} a5 {[%emt 0:00:16]} 27. Rf3 {[%emt 0:02:57]} b4 {[%emt 0:03:13]} ({But not} 27... Nf5 28. g4 Nxh4 29. Rh3 $11) 28. a4 {[%emt 0:02:35]} Rc8 {[%emt 0:00:37] And now ...Rfc7 would win.} 29. Kb1 {[%emt 0:00:36]} Qd6 {[%emt 0:09:28] Black is more active.} 30. Nf1 {[%emt 0:00:45]} Ng4 {[%emt 0:07:09]} (30... f5 $15) 31. Ne3 $11 {[%emt 0:02:35]} f5 {[%emt 0:00:14][%cal Bf6f5,Bf5f4,Bf4f3][%mdl 32]} 32. Nxg4 {[%emt 0:00:03]} hxg4 {[%emt 0:00:06]} 33. Re3 {[%emt 0:00:11]} f4 {[%emt 0:01:44]} 34. Re5 {[%emt 0:00:24]} Rh8 {[%emt 0:01:23]} 35. g3 $2 {[%emt 0:03:15]} (35. h5 $11) 35... f3 $19 {[%emt 0:01:23]} 36. Nc1 {[%emt 0:00:06] [#]} Rh5 $2 {[%emt 0:04:37]} (36... Nc5 $1 $19 {[%cal Rc5e4][%mdl 512] aiming for ...Ne4.} 37. Nd3 Ne4) 37. Nd3 $1 $11 {[%emt 0:01:39]} Kh7 {[%emt 0:09:41]} 38. Qe3 {[%emt 0:00:46]} Ng7 {[%emt 0:00:01]} 39. Nf4 {[%emt 0:01:04]} (39. Qd2 $11 {deserves consideration.}) 39... Rxe5 {[%emt 0:01:34]} (39... Rhf5 $5 {[%cal Rd6c6]}) 40. dxe5 {[%emt 0:00:51]} Nf5 {[%emt 0:00:06]} (40... Qa6 $11 {keeps the balance.}) 41. Qe1 $16 {[%emt 0:01:03]} (41. exd6 $2 Nxe3 42. Rd2 Nc4 $19) 41... Qc5 {[%emt 0:01:27] Hoping for ...f2.} 42. e6 {[%emt 0:00:24]} ({Not} 42. Rxd5 $2 f2 43. Qc1 (43. Rxc5 $2 {loses.} fxe1=Q+ 44. Ka2 Qxg3 $19) 43... Qe3 $19) (42. h5 $1 $14 Rc7 43. Rd2) 42... Rc7 {[%emt 0:03:04]} 43. Qd2 {[%emt 0:00:55]} Ne3 $36 {[%emt 0:03:29][%mdl 2048] Black is pushing.} 44. Rc1 {[%emt 0:04:19][%mdl 8192]} (44. Re1 $11 d4 45. h5) 44... d4 $19 {[%emt 0:01:14] Black is clearly winning.} 45. h5 {[%emt 0:01:22]} gxh5 {[%emt 0:02:32]} 46. Qd3+ {[%emt 0:00:50]} (46. Qh2 $142 b3 47. e7) 46... Qf5 {[%emt 0:00:03]} 47. Qxf5+ {[%emt 0:00:32]} (47. e7 $142 Rxe7 48. Rh1 Qxd3 49. Rxh5+ Kg7 50. Nxd3) 47... Nxf5 {[%emt 0:00:02]} 48. Nd5 {[%emt 0:00:01]} Rc8 {[%emt 0:01:15] Weighted Error Value: White=0.53/Black=0.24 (precise)} 0-1

[Event "13th KIIT Festival-A 2022"]
[Site "Bhubaneswar"]
[Date "2022.05.28"]
[Round "9.6"]
[White "Arpita, Mukherjee"]
[Black "Nitin, S.."]
[Result "1/2-1/2"]
[ECO "B42"]
[WhiteElo "2275"]
[BlackElo "2399"]
[Annotator "TA"]
[PlyCount "34"]
[EventDate "2022.05.15"]
[EventType "swiss"]
[EventCountry "IND"]
[SourceTitle "playchess.com"]
[Source "ChessBase"]
[SourceQuality "1"]
[TimeControl "5400+30"]

{[%evp 13,34,40,47,23,24,20,44,31,27,33,41,33,38,0,41,0,37,0,39,0,29,0,40]} 1. e4 {[%emt 0:06:04]} c5 {[%emt 0:00:34]} 2. Nf3 {[%emt 0:00:09]} e6 {[%emt 0:00:58]} 3. d4 {[%emt 0:00:24]} cxd4 {[%emt 0:00:09]} 4. Nxd4 {[%emt 0:00:09]} a6 {[%emt 0:00:05]} 5. Bd3 {[%emt 0:00:19]} g6 {[%emt 0:00:22]} 6. O-O {[%emt 0:03:08]} Bg7 {[%emt 0:00:12]} 7. Nb3 {[%emt 0:00:17]} Ne7 {[%emt 0:02:45]} 8. Nc3 {[%emt 0:03:44] B42: Sicilian: Kan Variation: 5 Bd3.} O-O {[%emt 0:01:00]} 9. Bg5 {[%emt 0:00:23][%cal Bc1g5,Bg5h4,Bh4f2][%mdl 32]} h6 {[%emt 0:02:37]} 10. Bh4 {[%emt 0:00:16] White is slightly better.} Nbc6 {[%emt 0:01:56]} 11. f4 {[%emt 0:04:23] [#]} Qb6+ $146 {[%emt 0:08:43]} ({Predecessor:} 11... f5 12. exf5 gxf5 13. Rf3 Qc7 14. Qd2 b5 15. Bf2 Bb7 16. Rg3 Rad8 17. Nc5 Bc8 {½-½ (47) Borges Feria,Y (2406)-Macias Murillo,B (2218) Havana 2008}) 12. Bf2 {[%emt 0:00:45]} Qc7 {[%emt 0:00:06]} 13. Bh4 {[%emt 0:00:04]} Qb6+ {[%emt 0:00:04]} 14. Bf2 {[%emt 0:00:02]} Qc7 {[%emt 0:00:08]} 15. Bh4 {[%emt 0:00:03]} Qb6+ {[%emt 0:00:07]} 16. Bf2 {[%emt 0:00:04]} Qc7 {[%emt 0:00:08]} 17. Bh4 {[%emt 0:00:01]} Qb6+ {[%emt 0:00:09] Weighted Error Value: White=0.23 (precise) /Black=0.03 (flawless)} 1/2-1/2

[Event "13th KIIT Festival-A 2022"]
[Site "Bhubaneswar"]
[Date "2022.05.28"]
[Round "9.7"]
[White "Audi Ameya"]
[Black "Aaryan Varshney"]
[Result "1-0"]
[ECO "E69"]
[WhiteElo "2389"]
[BlackElo "2308"]
[Annotator "TA"]
[PlyCount "157"]
[EventDate "2022.05.15"]
[EventType "swiss"]
[EventCountry "IND"]
[SourceTitle "playchess.com"]
[Source "ChessBase"]
[SourceQuality "1"]
[TimeControl "5400+30"]

{[%evp 28,157,65,62,55,58,50,56,57,50,62,51,58,44,53,40,103,100,95,93,120,127,112,114,245,144,245,228,308,313,325,308,306,298,307,82,251,218,279,141,292,121,303,199,455,294,296,281,313,306,310,305,281,316,294,289,502,335,309,312,320,294,323,300,368,380,351,366,359,358,338,340,490,452,578,590,548,634,616,606,614,620,614,633,587,596,587,523,1314,1299,1320,991,5639,4975,12848,12850,9654,6310,6303,6195,5157,29966,29966,29966,29966,29967,29969,29970,29970,29970,29980,29980,29983,29984,29984,29985,29986,29987,29987,29988,29988,29989,29989,29988,29988,29989,29989,29990,29990,29991,29991,29992]} 1. Nf3 {[%emt 0:00:02]} Nf6 {[%emt 0:00:12]} 2. g3 {[%emt 0:00:04]} g6 {[%emt 0:00:05]} 3. c4 {[%emt 0:00:07]} Bg7 {[%emt 0:00:06]} 4. Nc3 {[%emt 0:00:10]} O-O {[%emt 0:00:13]} 5. Bg2 {[%emt 0:00:04]} d6 {[%emt 0:00:15]} 6. d4 {[%emt 0:00:07]} Nbd7 {[%emt 0:01:04]} 7. O-O {[%emt 0:00:06]} e5 {[%emt 0:00:03]} 8. e4 {[%emt 0:00:14]} c6 {[%emt 0:00:45]} 9. h3 {[%emt 0:00:10]} Re8 {[%emt 0:00:41]} 10. Be3 {[%emt 0:02:19]} exd4 {[%emt 0:06:01]} 11. Nxd4 {[%emt 0:00:18]} Nc5 {[%emt 0:00:11]} 12. Qc2 {[%emt 0:00:04]} a5 {[%emt 0:00:09]} 13. Rad1 {[%emt 0:00:09]} Qe7 {[%emt 0:00:28]} 14. Rfe1 {[%emt 0:00:25]} a4 {[%emt 0:01:03]} 15. f4 {[%emt 0:00:05] White is more active.} Qc7 {[%emt 0:00:48] E69: King's Indian: Fianchetto: 6...Nbd7 7 0-0 e5 8 e4 c6 9 h3.} (15... Ncxe4 16. Bf2 $16) 16. Bf2 {[%emt 0:00:12]} Qa5 {[%emt 0:03:02]} 17. g4 {[%emt 0:00:20]} Nfd7 {[%emt 0:01:03] [#] White is slightly better.} 18. Kh1 $146 {[%emt 0:23:14]} ({Predecessor:} 18. Nce2 Na6 19. Ng3 Nb4 20. Qb1 Nc5 21. a3 Nba6 22. Qc1 Qc7 23. Qc2 Nb8 24. Kh2 {1-0 (42) Fernandez,J (2428)-Iturbide,H (2229) ICCF email 2020}) 18... Qb4 {[%emt 0:12:36]} 19. a3 {[%emt 0:01:05]} Qa5 {[%emt 0:00:28]} (19... Qxc4 $2 20. Bf1 b5 21. Bxc4 $18) 20. Na2 {[%emt 0:11:41]} Nb6 {[%emt 0:03:58]} 21. Nb4 {[%emt 0:00:05][%cal Oe4e5]} Bd7 {[%emt 0:01:02] White stays focused until the end.} (21... Bf8 $14) 22. Nf3 {[%emt 0:10:14]} Be6 {[%emt 0:21:06]} 23. Bf1 {[%emt 0:00:05]} Rad8 {[%emt 0:03:16]} 24. f5 {[%emt 0:04:02]} Bc8 {[%emt 0:00:28]} 25. Bg3 {[%emt 0:00:33]} Bf8 {[%emt 0:04:06]} (25... Nbd7 $16) 26. Bh4 {[%emt 0:00:12]} (26. e5 $1 $18) 26... Rd7 {[%emt 0:02:14]} (26... Nbd7 $16 27. Bxd8 Qxd8) 27. Bf6 $18 {[%emt 0:01:14] Strongly threatening Bc3.} Rc7 {[%emt 0:07:25]} 28. Bc3 $1 {[%emt 0:17:29]} Qa8 {[%emt 0:03:43]} 29. Qf2 {[%emt 0:01:02]} Nbd7 {[%emt 0:01:04]} 30. Qh4 {[%emt 0:11:13]} (30. Qd4 Ne5 $14) 30... Ne5 {[%emt 0:03:51] [#]} 31. Bg2 {[%emt 0:05:02]} (31. Ng5 f6 32. Ne6 (32. Bxe5 $2 fxg5 33. Qxg5 Rxe5 $19) 32... Nxe6 33. fxe6 Bxe6 $17) (31. Bxe5 dxe5 32. Nd3 (32. Ng5 h6 $11) 32... Nxd3 33. Rxd3 (33. Bxd3 Qa5 $11) 33... Kg7 $16) (31. Rxd6 $3 $18 {[%mdl 512] and the rest is easy.} Bxd6 (31... Nxf3 32. Qf6) 32. Nxe5 (32. Qf6 $2 Rce7 $19)) 31... Ncd7 {[%emt 0:05:09]} (31... Rd7 $16 {is a better defense.}) 32. Rf1 {[%emt 0:01:43] And now Nd3 would win.} (32. Ng5 h6 $14) 32... Nxf3 {[%emt 0:00:43] [#]} 33. Bxf3 {[%emt 0:01:16]} (33. fxg6 $1 $18 fxg6 34. Rxf3) 33... Ne5 $2 {[%emt 0:00:25]} (33... b6 $16 34. fxg6 fxg6) 34. Be2 $40 {[%emt 0:00:25][%mdl 128] White has strong attack.} (34. c5 $18 {is more deadly.}) 34... Rd7 $2 {[%emt 0:01:14]} (34... b6 $16 {keeps fighting.}) 35. Nd3 {[%emt 0:01:36][%cal Oc4c5] aiming for c5!} Be7 $2 {[%emt 0:05:29]} (35... c5 36. Nf4 b6) 36. Qf2 {[%emt 0:01:21]} g5 {[%emt 0:06:57]} 37. f6 {[%emt 0:01:45]} (37. Nxe5 $6 dxe5 38. f6 (38. Bxe5 c5 $16) 38... Bf8 $18) 37... Bf8 {[%emt 0:00:52] [#]} 38. Nxe5 {[%emt 0:00:08]} (38. Qf5 Ng6 $16) 38... dxe5 {[%emt 0:00:13]} 39. Qf5 {[%emt 0:00:06][%csl LRd7,LRe5,LRg5]} Rxd1 {[%emt 0:00:37]} 40. Qxg5+ {[%emt 0:00:01]} Kh8 {[%emt 0:00:07] White must now prevent ...Rxf1+.} 41. Rxd1 {[%emt 0:00:04]} b6 {[%emt 0:00:42]} (41... Qa7 {was called for.} 42. c5 (42. Bxe5 Qc5 $14) 42... Be6) 42. Bxe5 {[%emt 0:01:18]} Qa5 {[%emt 0:05:05]} 43. Bf4 {[%emt 0:00:16] e5 is the strong threat.} ({Not} 43. c5 Qxc5 44. Qf4 (44. Bf4 Qf2 $11) 44... Qxe5 $14) 43... Qxg5 {[%emt 0:00:16]} 44. Bxg5 {[%emt 0:00:01]} Kg8 {[%emt 0:00:36]} 45. Bd3 {[%emt 0:05:25]} Bd6 {[%emt 0:01:30]} 46. Bc2 {[%emt 0:04:09][%csl LRa4,LRd6]} Bc7 {[%emt 0:00:31]} 47. Kg2 {[%emt 0:00:50]} b5 {[%emt 0:00:50]} 48. cxb5 {[%emt 0:00:46]} cxb5 {[%emt 0:00:03]} 49. Rd5 {[%emt 0:00:58]} Re5 {[%emt 0:00:44]} (49... Be5 {might work better.} 50. Rxb5 Bd7) 50. Bd2 {[%emt 0:00:03]} Be6 {[%emt 0:01:26]} 51. Rxe5 {[%emt 0:00:09]} Bxe5 {[%emt 0:00:02][%mdl 4096] Endgame KBB-KBB} 52. Bc3 {[%emt 0:00:01]} Bf4 {[%emt 0:00:18]} 53. Kf3 {[%emt 0:00:07]} Bc1 {[%emt 0:00:12]} 54. Bd3 {[%emt 0:00:23]} Bd7 {[%emt 0:00:08]} 55. e5 {[%emt 0:00:55]} Bc6+ {[%emt 0:00:08]} 56. Be4 {[%emt 0:00:03]} Bd7 {[%emt 0:00:04]} 57. Kg3 {[%emt 0:01:11]} h6 {[%emt 0:00:16]} 58. Bf5 {[%emt 0:00:14]} Be8 {[%emt 0:00:29]} 59. e6 {[%emt 0:01:31]} fxe6 {[%emt 0:00:12]} 60. Bxe6+ {[%emt 0:00:02]} Bf7 {[%emt 0:00:08]} 61. Bxf7+ {[%emt 0:00:41]} Kxf7 {[%emt 0:00:08] KB-KB} 62. h4 {[%emt 0:00:10]} Ke6 {[%emt 0:00:10]} 63. Kf3 {[%emt 0:00:38] White threatens Ke4 and mate.} Kf7 {[%emt 0:00:17]} 64. Ke4 {[%emt 0:00:46]} (64. Bd4 $18 Bd2 65. Ke4) 64... Ke6 {[%emt 0:00:16] White mates.} 65. Be5 {[%emt 0:00:38]} Bd2 {[%emt 0:00:25]} 66. Bd4 {[%emt 0:00:11]} b4 {[%emt 0:01:12]} 67. axb4 {[%emt 0:00:59]} Bxb4 {[%emt 0:00:02]} 68. g5 {[%emt 0:00:04]} hxg5 {[%emt 0:00:14]} 69. hxg5 {[%emt 0:00:02]} a3 {[%emt 0:00:07]} 70. bxa3 {[%emt 0:01:20]} Bxa3 {[%emt 0:00:01]} 71. g6 {[%emt 0:00:04]} Bc1 {[%emt 0:00:39]} 72. f7 {[%emt 0:00:09]} Bh6 {[%emt 0:00:17]} 73. Kf3 {[%emt 0:00:15]} Bf8 {[%emt 0:00:25]} 74. Kg4 {[%emt 0:00:03]} Bh6 {[%emt 0:00:06]} 75. Kh5 {[%emt 0:00:03]} Bf8 {[%emt 0:00:05]} 76. Bc3 {[%emt 0:00:11]} Bc5 {[%emt 0:00:13]} 77. Bg7 {[%emt 0:00:12]} Bb4 {[%emt 0:00:07]} 78. f8=Q {[%emt 0:00:08]} Bxf8 {[%emt 0:00:02]} 79. Bxf8 {[%emt 0:00:05] Weighted Error Value: White=0.27 (precise) /Black=0.45} 1-0

[Event "13th KIIT Festival-A 2022"]
[Site "Bhubaneswar"]
[Date "2022.05.28"]
[Round "9.8"]
[White "Paichadze, Luka"]
[Black "Dhananjay S"]
[Result "1-0"]
[ECO "B53"]
[WhiteElo "2567"]
[BlackElo "2218"]
[Annotator "TA"]
[PlyCount "49"]
[EventDate "2022.05.15"]
[EventType "swiss"]
[EventCountry "IND"]
[SourceTitle "playchess.com"]
[Source "ChessBase"]
[SourceQuality "1"]
[TimeControl "5400+30"]

{[%evp 9,49,12,21,20,20,16,52,56,45,50,40,50,52,50,67,57,91,87,97,62,76,45,77,76,75,76,77,72,143,129,127,105,182,204,200,153,295,289,904,881,866,857]} 1. e4 {[%emt 0:00:03]} c5 {[%emt 0:02:56]} 2. Nf3 {[%emt 0:00:15]} d6 {[%emt 0:00:34]} 3. d4 {[%emt 0:00:06]} cxd4 {[%emt 0:00:04]} 4. Qxd4 {[%emt 0:00:04]} Nf6 {[%emt 0:00:04]} 5. Bg5 {[%emt 0:00:06]} Nc6 {[%emt 0:03:09]} 6. Bb5 {[%emt 0:00:12] B53: Sicilian: 2...d6: Lines with Qxd4.} Bd7 {[%emt 0:12:24] The main line 6...Bd7 scores better than 6...Qa5+.} 7. Qd3 {[%emt 0:05:03]} a6 {[%emt 0:10:36]} 8. Bxc6 {[%emt 0:00:34] White is slightly better.} Bxc6 {[%emt 0:00:04]} 9. Bxf6 {[%emt 0:07:02]} gxf6 {[%emt 0:00:46]} 10. Nc3 {[%emt 0:00:11]} e6 {[%emt 0:00:50]} 11. O-O-O {[%emt 0:01:00]} Be7 {[%emt 0:00:28]} 12. Nd4 {[%emt 0:01:03]} Qa5 {[%emt 0:00:54]} 13. f4 {[%emt 0:01:00]} ({Don't play} 13. Nxc6 bxc6 14. f4 Rg8 $11) 13... Bd7 {[%emt 0:03:07]} 14. Kb1 {[%emt 0:03:19] [#]} O-O-O $146 {[%emt 0:01:57]} ({Predecessor:} 14... Rc8 15. f5 b5 16. Qh3 b4 17. fxe6 fxe6 18. Nce2 Qe5 19. Rhe1 h5 20. Qf3 Rc4 21. Qd3 Rc5 22. g3 a5 23. Nf4 Kf7 24. Nf3 {1-0 (24) Chadaev,N (2591)-Wanyama,H (2280) Chess.com INT 2016}) 15. Qe2 {[%emt 0:02:29]} Kb8 {[%emt 0:01:20]} 16. Nb3 {[%emt 0:01:02]} Qc7 {[%emt 0:04:42]} 17. Qh5 {[%emt 0:00:28]} Rdf8 {[%emt 0:04:02]} 18. Rd3 {[%emt 0:00:33][%cal Bd1d3,Bd3g3,Bg3g7][%mdl 32]} b5 {[%emt 0:02:24] [#]} (18... h6 $142) 19. a3 $1 $16 {[%emt 0:05:54] White is much more active. The black rooks are badly placed.} Qb6 {[%emt 0:01:07]} 20. Rg3 {[%emt 0:07:28]} Qf2 {[%emt 0:08:55]} (20... a5 $16) 21. f5 $18 {[%emt 0:02:55]} exf5 {[%emt 0:13:45]} 22. Rd1 {[%emt 0:03:03] Threatens to win with Nd4.} f4 {[%emt 0:07:47]} (22... fxe4 $16 {was necessary.} 23. Nxe4 Qf4) 23. Rg7 {[%emt 0:00:29][%csl LRf7,LRh7]} Rc8 $2 {[%emt 0:06:56] [#]} (23... Qa7 24. Rxf7 Rxf7 25. Qxf7 Bd8 26. Rxd6 Bc8) 24. Qxf7 {[%emt 0:04:44]} Rhe8 {[%emt 0:00:05]} 25. Nd4 {[%emt 0:02:03] Weighted Error Value: White=0.09 (flawless) /Black=0.25 (precise)} ({Weaker is} 25. Qd5 Bc6 26. Qd4 Qxd4 27. Nxd4 Bd8 28. Nxc6+ (28. Rxh7 Bxe4 29. Nxe4 Rxe4 $16) 28... Rxc6 29. Rxh7 Rc7 $18) 1-0

[Event "13th KIIT Festival-A 2022"]
[Site "Bhubaneswar"]
[Date "2022.05.28"]
[Round "9.9"]
[White "Ram Aravind L N"]
[Black "Rahman, Ziaur"]
[Result "1/2-1/2"]
[ECO "B15"]
[WhiteElo "2116"]
[BlackElo "2431"]
[Annotator "TA"]
[PlyCount "64"]
[EventDate "2022.05.15"]
[EventType "swiss"]
[EventCountry "IND"]
[SourceTitle "playchess.com"]
[Source "ChessBase"]
[SourceQuality "1"]
[TimeControl "5400+30"]

{[%evp 10,64,26,16,15,-3,12,0,0,0,0,0,4,-18,0,0,0,0,0,-4,15,9,33,21,35,45,39,32,32,32,32,29,31,45,32,38,34,41,30,-691,0,0,25,0,0,0,47,0,0,0,37,0,0,0,272,272,950]} 1. e4 {[%emt 0:00:07]} c6 {[%emt 0:01:31]} 2. d4 {[%emt 0:00:51]} d5 {[%emt 0:00:08]} 3. Nc3 {[%emt 0:00:37]} dxe4 {[%emt 0:00:12]} 4. Nxe4 {[%emt 0:00:06]} Nf6 {[%emt 0:01:32]} 5. Nxf6+ {[%emt 0:04:09]} exf6 {[%emt 0:00:32]} 6. Bc4 {[%emt 0:04:59]} Na6 {[%emt 0:00:59][%cal Bb8a6,Ba6c7,Bc7d5][%mdl 32] B15: Caro-Kann: 3 Nc3: 3...g6 and 3...dxe4 4 Nxe4 Nf6 5 Nxf6+ exf6.} 7. Bf4 {[%emt 0:04:32]} Nc7 {[%emt 0:02:42] [#]} 8. Qe2+ $146 {[%emt 0:04:42]} ({Predecessor:} 8. c3 Bd6 9. Bxd6 Qxd6 10. Qd2 O-O 11. Ne2 Re8 12. O-O Be6 13. Bd3 Rad8 14. Qc2 {1-0 (22) Mazi,L (2346)-Mouhamad,J (2226) Chess.com INT 2021}) 8... Be7 {[%emt 0:00:30] The position is equal.} 9. Nf3 {[%emt 0:03:02]} O-O {[%emt 0:03:06]} 10. O-O {[%emt 0:03:26]} Nd5 {[%emt 0:01:36]} 11. Bd2 {[%emt 0:04:30]} Bd6 {[%emt 0:05:09]} 12. Rfe1 $1 {[%emt 0:01:40]} Bg4 {[%emt 0:10:54]} 13. h3 {[%emt 0:10:38]} Bh5 {[%emt 0:02:19]} 14. Bd3 {[%emt 0:01:30][%cal Bc4d3,Bd3f5,Bf5h7][%mdl 32]} Nc7 {[%emt 0:10:59]} 15. Bf5 {[%emt 0:02:13]} Nb5 {[%emt 0:07:13] aiming for ...Nxd4.} 16. Qd3 {[%emt 0:09:16]} Bxf3 {[%emt 0:05:30]} 17. Bxh7+ {[%emt 0:00:39]} (17. gxf3 g6 18. Bh6 Re8 19. Rxe8+ Qxe8 $15) 17... Kh8 {[%emt 0:00:05] Threatens to win with ...Bh5.} 18. Qxf3 {[%emt 0:01:26]} ({Avoid the trap} 18. gxf3 $2 g6 19. a4 Nxd4 $19) 18... g6 {[%emt 0:05:54] [#] Prevents Qh5.} 19. Qe3 {[%emt 0:03:21]} Re8 $1 {[%emt 0:07:16]} ({Not} 19... Kxh7 20. Qh6+ Kg8 21. Re4 $16) 20. Qh6 {[%emt 0:00:32] White wants to mate with Bxg6+.} Rxe1+ {[%emt 0:00:05]} 21. Rxe1 {[%emt 0:00:05] White threatens Bxg6+ and mate.} Bf8 {[%emt 0:03:17]} 22. Qh4 {[%emt 0:00:05]} Qxd4 {[%emt 0:00:23]} 23. Bf4 {[%emt 0:01:00] Intending Bxg6+ and mate.} Kg7 {[%emt 0:03:21]} (23... g5 $2 24. Qh5 $1 Kg7 25. Bf5 $1 Qxf2+ 26. Kxf2 $18) 24. Qh6+ {[%emt 0:23:04]} (24. a4 $5 {[%cal Ra4b5]} g5 25. Qh5 $14) 24... Kh8 {[%emt 0:00:03]} 25. Qh4 {[%emt 0:00:03] Threatening mate with Bxg6+.} Kg7 {[%emt 0:00:17]} (25... g5 $2 26. Qh5 $1 Kg7 27. Bf5 $1 Qxf2+ 28. Kxf2 $18) 26. Qh6+ {[%emt 0:02:13]} Kh8 {[%emt 0:00:02]} 27. Qh4 {[%emt 0:00:04]} Kg7 {[%emt 0:00:06]} (27... g5 $2 28. Qh5 $1 Kg7 29. Bf5 $1 Qxf2+ 30. Kxf2 $18) 28. Qh6+ $40 {[%emt 0:00:05][%mdl 128] White is up to no good.} (28. a4 $5 {[%cal Ra4b5]} g5 29. Qh5 $14) 28... Kh8 {[%emt 0:00:06]} 29. Qh4 {[%emt 0:00:38] Bxg6+ would kill now.} Kg7 {[%emt 0:29:13]} (29... g5 $2 30. Qh5 $1 Kg7 31. Bf5 $1 Qxf2+ 32. Kxf2 $18) 30. c4 {[%emt 0:15:57]} (30. a4 $5 {[%cal Ra4b5]} g5 31. Qh5 $14) 30... g5 31. Qh5 Qxf4 $4 {[%emt 0:01:00][%mdl 8192] [#]} (31... Bc5 $11 {and Black has nothing to worry.} 32. Be3 Qxc4) 32. g3 $1 $18 Qd4 $2 {[%emt 0:00:30][%mdl 32768] What a bad dream for Black.  Weighted Error Value: White=0.23 (precise) /Black=0.26 (precise) . An unexpected result.} (32... Qxc4 {leads to mate.} 33. Bf5) (32... Qd2 33. Rd1 Qxd1+ 34. Qxd1 Kxh7 35. cxb5 cxb5) 1/2-1/2